Cogmind - Beta 15 @@@ ROGUE MODE // 2025.08.06 @ 01:52:30 Player: Naughtyusername Result: Destroyed by X-77 Beamer with Gatling Laser Performance ------------- Evolutions (7) 3500 Regions Visited (24) 4800 Robots Destroyed (315) 1575 Value Destroyed (13178) 13178 Prototype IDs (60) 1200 Alien Tech Used (2) 400 Bonus (6929) 6929 TOTAL SCORE: 31582 Bonus ------- High Alert Combat Kills 1221 Follower Combat Kills 2544 Met Imprinter 300 Met Zhirov 300 Met Warlord at Base 500 MAIN.C Attacked Warlord 500 Warlord Defense Kills 304 Built Enhanced Grunts 300 Met R17 at Cetus 500 Met R17 at Research 2000 Friendly Fire -1540 Cogmind --------- Core Integrity 0/1300 Matter 116/300 Energy 77/100 System Corruption 36% Temperature Cool (13) Movement Flying (40) Location -3/Armory Parts ------- > --- POWER (2) -------- (None) > --- PROPULSION (6) --- Field Propulsion Array > --- UTILITY (9) ------ (None) > --- WEAPON (4) ------- (None) > --- INVENTORY (5) ---- Improved Component Analysis Suite Heavy Phase Cannon High-powered Shotgun Heavy Machine Gun Compact Mass Driver Peak State ------------ > --- POWER ------------ Light Antimatter Reactor Quantum Reactor > --- PROPULSION ------- Armored Medium Treads Armored Medium Treads Heavy Treads Centrium Heavy Treads > --- UTILITY ---------- Experimental Heat Sink Huge Storage Unit Experimental Signal Interpreter Experimental Targeting Computer Advanced Target Analyzer Layered Medium Armor Plating Graphene Brace Experimental Hacking Suite Improved Component Analysis Suite > --- WEAPON ----------- Heavy Phase Cannon Coil Gun KE Penetrator Railgun > --- INVENTORY -------- Armored Medium Treads Armored Medium Treads Improved Matter Compressor Advanced Sensor Array Advanced Terrain Scanner Makeshift Terrain Scan Processor Improved Salvage Targeting Computer Core Analyzer Advanced Recoil Stabilizer Matter Filter Kinecellerator Improved Weapon Cycler Experimental Core Shielding Hardened Heavy Armor Plating Advanced Force Field Advanced Variable Charge Gun Vortex Rifle Quantum Rifle Vortex Rail Vortex Rail Compact HERF Cannon Hardcell Cannon Hardcell Cannon Improved Plasma Cutter [Rating: 152] Favorites ----------- Power Cooled Ion Engine Engine Cooled Ion Engine Power Core Light Fission Core Reactor Quantum Reactor Propulsion Armored Medium Treads Treads Armored Medium Treads Leg Aluminum Leg Wheel Armored Wheel Hover Unit Aerolev Unit Flight Unit Field Propulsion Array Utility Experimental Targeting Computer Device Advanced Sensor Array Storage Huge Storage Unit Processor Experimental Targeting Computer Hackware Hacking Suite Protection Improved Light Armor Plating Weapon Coil Gun Energy Gun EM Pulse Gun Energy Cannon Heavy Phase Cannon Ballistic Gun Coil Gun Ballistic Cannon Slug Cannon Launcher Smartbomb Launcher Special Weapon Improved Plasma Cutter Slashing Weapon Makeshift Sword Piercing Weapon CR-A16's Pointy Stick Build | -11 -10 -10 -8 -8 -7 -7 -7 -7 -6 -6 -6 -6 -5 -5 -5 -5 -4 -4 -4 -4 -4 -3 -3 -3 ------- Run | Yrd Mat Sub Mat Sto Fac Low Low Zio Pro Fac Ext Cet Fac Upp Upp Zhi Pro Fac Upp Upp War Pro Res Arm Slots Evolved 14 | . . . 4 . 2 . . . . 2 . . 2 . . . . 2 . . . . 2 . Power 1 | . . . . . . . . . . . . . 1 . . . . . . . . . . . Propulsion 4 | . . . 1 . 1 . . . . . . . . . . . . 1 . . . . 1 . Utility 7 | . . . 2 . 1 . . . . 1 . . 1 . . . . 1 . . . . 1 . Weapon 2 | . . . 1 . . . . . . 1 . . . . . . . . . . . . . . Parts Attached 240 | 2 18 12 32 20 16 10 1 8 3 10 13 8 15 1 4 5 1 13 3 . 3 . 13 29 Power 23 | . 2 1 3 1 . . . . . 2 2 1 2 . 1 . . 1 . . . . 3 4 Engine 7 | . 2 1 1 1 . . . . . 1 1 . . . . . . . . . . . . . Core 5 | . . . 2 . . . . . . 1 . . 2 . . . . . . . . . . . Reactor 11 | . . . . . . . . . . . 1 1 . . 1 . . 1 . . . . 3 4 Propulsion 47 | . 6 3 11 1 4 1 . . 1 2 3 1 4 . . . . 1 . . 2 . 1 6 Treads 34 | . 2 . 8 . 4 1 . . 1 2 3 1 4 . . . . 1 . . 2 . 1 4 Leg 1 | . . . 1 . . . . . . . . . . . . . . . . . . . . . Wheel 9 | . 4 3 2 . . . . . . . . . . . . . . . . . . . . . Hover 1 | . . . . 1 . . . . . . . . . . . . . . . . . . . . Flight 2 | . . . . . . . . . . . . . . . . . . . . . . . . 2 Utility 91 | 2 3 1 10 8 9 7 . 6 1 2 4 5 4 1 1 4 . 9 2 . 1 . 5 6 Device 28 | 2 1 . 2 1 3 2 . . . 1 2 2 4 . . 2 . 3 1 . . . 1 1 Storage 8 | . 2 . . 1 . . . . . 1 . 1 . . . 1 . 1 . . . . . 1 Processor 21 | . . . 3 1 1 2 . 5 . . . 1 . . . . . 3 1 . 1 . 1 2 Hackware 8 | . . . 1 . 3 . . 1 . . . . . . . . . 2 . . . . 1 . Protection 26 | . . 1 4 5 2 3 . . 1 . 2 1 . 1 1 1 . . . . . . 2 2 Artifact . | . . . . . . . . . . . . . . . . . . . . . . . . . Weapon 79 | . 7 7 8 10 3 2 1 2 1 4 4 1 5 . 2 1 1 2 1 . . . 4 13 Energy Gun 5 | . . 2 1 . . . . . . . . . . . . . . . . . . . . 2 Energy Cannon 10 | . 3 . 2 . . . . . 1 2 . . 1 . . . . . . . . . . 1 Ballistic Gun 40 | . 4 3 5 8 2 1 . 1 . 1 3 . 2 . 2 . 1 2 1 . . . 4 . Ballistic Cannon 14 | . . 1 . . . 1 . . . 1 . 1 1 . . . . . . . . . . 9 Launcher 6 | . . . . 2 1 . 1 . . . . . 1 . . . . . . . . . . 1 Special Weapon 1 | . . . . . . . . . . . . . . . . 1 . . . . . . . . Impact Weapon . | . . . . . . . . . . . . . . . . . . . . . . . . . Slashing Weapon 2 | . . 1 . . . . . 1 . . . . . . . . . . . . . . . . Piercing Weapon 1 | . . . . . . . . . . . 1 . . . . . . . . . . . . . Special Melee Weapon . | . . . . . . . . . . . . . . . . . . . . . . . . . Unidentified Prototypes 18 | . . . 1 3 . . . 6 . . . 3 . . 1 3 1 . . . . . . . Parts Lost 89 | . 1 3 14 3 4 3 . 1 1 6 7 2 . . 2 . 8 3 . . 1 . . 30 Power 12 | . 1 1 1 . . . . . . 1 . . . . 1 . 1 1 . . . . . 5 Propulsion 21 | . . . 5 . 2 1 . . 1 2 1 . . . . . . . . . . . . 9 Utility 32 | . . 1 5 3 1 2 . 1 . 2 2 . . . . . 4 1 . . . . . 10 Weapon 24 | . . 1 3 . 1 . . . . 1 4 2 . . 1 . 3 1 . . 1 . . 6 Highest Loss Streak 17 | . 1 1 5 1 3 1 . 1 1 5 3 2 . . 1 . 5 1 . . 1 . . 17 To Critical Strikes 2 | . . . . . 1 . . . . . . 1 . . . . . . . . . . . . Average Backups 18 | 6 12 13 12 14 14 12 14 14 14 18 21 22 24 25 22 24 19 22 24 25 24 24 24 22 Power . | 1 . . 1 1 1 1 1 1 1 . 1 2 2 2 1 1 1 . . . . . . . Propulsion 2 | 4 2 2 . 1 1 1 1 1 . 3 3 3 2 3 3 3 3 2 2 2 2 3 1 1 Utility 7 | . 3 5 4 5 6 6 5 5 6 6 7 9 10 11 11 11 10 11 11 13 12 12 12 9 Weapon 7 | 1 6 4 6 7 5 3 7 7 7 8 9 7 8 8 6 8 3 8 9 9 9 8 8 10 Tool/Special . | . . . . . . . . . . . . . . . . . . . . . . . . . Unused Backups 77 | . 10 3 6 6 3 1 1 4 1 1 8 5 4 . . 2 . 1 1 . 3 . 6 11 Power 11 | . 1 1 1 1 . . . . . . 3 3 . . . . . . . . . . . 1 Propulsion 14 | . 4 1 1 . 1 . 1 . . 1 2 1 2 . . . . . . . . . . . Utility 21 | . 2 1 2 . 2 1 . . . . 2 . 2 . . 1 . 1 . . . . 3 4 Weapon 31 | . 3 . 2 5 . . . 4 1 . 1 1 . . . 1 . . 1 . 3 . 3 6 Tool/Special . | . . . . . . . . . . . . . . . . . . . . . . . . . Average Slot Usage (%) 93 | . 96 98 88 99 99 95 100 78 100 99 99 98 90 88 93 73 90 93 93 94 93 94 91 85 Engine 4 | . 10 14 1 7 7 7 7 7 7 2 5 . . . . . . . . . . . . . Core 1 | . . . 6 1 . . . . . 3 . . 3 11 7 5 3 . . . . . . . Reactor 2 | . . . . . . . . . . . . 6 3 . 3 5 5 9 10 10 10 10 9 7 Treads 21 | . 1 . 8 26 29 29 30 30 30 25 25 25 17 17 17 17 17 21 21 21 21 21 20 22 Wheel 3 | . 23 28 16 . . . . . . . . . . . . . . . . . . . . . Device 12 | . 14 11 2 12 8 9 11 9 5 7 12 13 20 16 16 19 11 14 20 21 19 15 14 15 Storage 6 | . 14 14 7 8 7 7 7 7 7 6 6 6 5 5 5 5 5 5 5 5 5 5 4 3 Processor 9 | . . . 6 3 5 4 7 12 15 13 13 13 11 11 11 11 11 15 14 15 15 15 15 11 Hackware 1 | . . . 1 . 12 . . 1 7 4 . . . . . . . 3 . . . . 2 . Protection 5 | . . 1 11 10 2 12 10 5 1 6 6 4 2 5 5 2 9 1 . . . 5 4 4 Energy Cannon 2 | . 7 . 1 . . . . . 2 4 2 . 3 . 1 . 4 5 4 4 4 5 3 1 Ballistic Gun 15 | . 20 13 22 26 22 19 23 2 19 20 19 2 5 11 20 1 15 12 15 16 15 15 14 2 Ballistic Cannon 2 | . . 3 . . . . . . . 1 3 21 12 . . . 1 2 . . . . . 12 Peak Build Rating 152 | 9 13 23 62 63 46 46 45 56 56 70 71 91 112 108 114 118 117 130 131 131 134 132 152 152 Average Rating 70 | 6 10 16 34 33 44 42 44 37 54 66 65 73 100 106 109 95 111 125 128 131 131 131 147 132 On Entrance 78 | 6 9 11 22 62 34 46 44 45 55 54 70 71 91 108 107 114 117 106 122 131 131 127 132 147 Naked Turns 39 | . . . . . . . . . . . . . . . . . . . . . . . . 39 Heaviest Build 187 | 12 32 39 90 90 57 57 50 42 50 121 120 132 138 124 139 149 149 157 143 141 141 143 148 187 Greatest Support 204 | 20 40 32 100 100 90 90 90 90 90 100 101 138 138 134 134 134 134 161 161 161 161 161 204 204 Greatest Overweight (x) 5 | . 4 1 5 1 . . . . . 1 1 1 2 . 1 1 1 . . . . . . 1 Average Overweight (x) . | . . . . . . . . . . . 1 . . . . . . . . . . . . . Largest Inventory Capacity 25 | 8 15 15 15 15 15 15 15 15 15 25 25 25 25 25 25 25 25 25 25 25 25 25 25 25 Average Capacity 19 | 8 13 15 15 15 15 15 15 15 15 24 25 25 25 25 25 25 25 25 25 25 25 25 25 23 Most Carried 25 | 7 15 15 15 15 15 15 15 15 15 23 25 25 25 25 25 25 23 25 25 25 25 25 25 25 Average Carried 18 | 6 12 14 13 14 14 12 14 14 14 19 22 23 24 25 22 24 19 22 24 25 24 24 24 22 Final Capacity 25 | 8 15 15 15 15 15 15 15 15 15 25 25 25 25 25 25 25 25 25 25 25 25 25 25 5 Final Carried 25 | 6 15 15 15 15 15 12 15 15 14 21 25 25 25 25 22 23 19 24 25 25 25 25 25 5 Class Distribution -------------------- 19% | Mutant 13% | Scavenger-Tank 13% | Scavenger-Gunner 11% | Tank 10% | Gunner 9% | Scavenger-Skirmisher 8% | Commander-Gunner 5% | Skirmisher 4% | Commander-Tank 3% | Hacker-Gunner Dominant Class ---------------- Mutant | -10/Materials Mutant | -10/Subcaves Tank | -8/Materials Commander-Tank | -8/Storage Hacker-Gunner | -7/Factory Tank | -7/Lower Caves Gunner | -7/Lower Caves Mutant | -7/Zion Skirmisher | -6/Proximity Caves Skirmisher | -6/Factory Commander-Gunner | -6/Extension Gunner | -6/Cetus Scavenger-Skirmisher | -5/Factory Scavenger-Skirmisher | -5/Upper Caves Scavenger-Tank | -5/Upper Caves Mutant | -5/Zhirov Scavenger-Tank | -4/Proximity Caves Scavenger-Skirmisher | -4/Factory Scavenger-Gunner | -4/Upper Caves Scavenger-Gunner | -4/Upper Caves Scavenger-Gunner | -4/Warlord Scavenger-Tank | -3/Proximity Caves Scavenger-Tank | -3/Research Scavenger-Gunner | -3/Armory Resources | -11 -10 -10 -8 -8 -7 -7 -7 -7 -6 -6 -6 -6 -5 -5 -5 -5 -4 -4 -4 -4 -4 -3 -3 -3 ----------- Run | Yrd Mat Sub Mat Sto Fac Low Low Zio Pro Fac Ext Cet Fac Upp Upp Zhi Pro Fac Upp Upp War Pro Res Arm Matter Collected 13651 | 256 513 316 1375 928 827 512 198 145 . 717 718 499 734 236 346 431 446 388 213 103 307 56 963 2424 Remotely 12 | 12 . . . . . . . . . . . . . . . . . . . . . . . . Salvage Created 13514 | 121 772 185 1871 833 1366 432 121 . 60 1194 1458 192 379 197 322 277 455 511 27 . 343 5 406 1987 Parts 710 | 14 43 10 122 53 63 31 14 . 11 60 66 9 18 9 16 2 21 29 . . 15 2 16 86 Haulers Intercepted 15 | . 1 . 3 4 3 . . . . . 1 . . . . . . . . . . . 3 . Recyclers Shooed 8 | . 1 . 1 . 1 . . . . 2 2 . . . . . . . . . . . 1 . Parts Field Recycled . | . . . . . . . . . . . . . . . . . . . . . . . . . Retrieved Matter . | . . . . . . . . . . . . . . . . . . . . . . . . . Parts Self-Destructed 103 | . . 9 . . . 30 10 . 11 . . . . 5 15 1 20 . . . . 2 . . Prevented . | . . . . . . . . . . . . . . . . . . . . . . . . . Kills | -11 -10 -10 -8 -8 -7 -7 -7 -7 -6 -6 -6 -6 -5 -5 -5 -5 -4 -4 -4 -4 -4 -3 -3 -3 ------- Run | Yrd Mat Sub Mat Sto Fac Low Low Zio Pro Fac Ext Cet Fac Upp Upp Zhi Pro Fac Upp Upp War Pro Res Arm Combat Hostiles Destroyed 246 | . 10 4 36 14 22 12 8 . 3 16 24 3 6 13 6 . 7 7 . . 3 1 2 49 Melee 4 | . . . . . . . 1 . . . 1 . . . . . . . . . . . . 2 Guns 133 | . 7 3 36 10 16 8 1 . 3 9 11 . 2 4 4 . 5 5 . . 3 1 2 3 Cannons 67 | . 3 1 . . . 1 . . . 7 11 3 4 . . . 2 2 . . . . . 33 AOE 42 | . . . . 4 6 3 6 . . . 1 . . 9 2 . . . . . . . . 11 Classes Destroyed 23 | 2 7 1 3 1 1 . . . 1 . . . . . . . . . . . 3 . 1 3 Worker 8 | . 1 . 2 1 . . . . . 3 . . . . . . . . . . . . 1 . Builder 7 | . 4 . . . . . . . . 2 1 . . . . . . . . . . . . . Tunneler 4 | 4 . . . . . . . . . . . . . . . . . . . . . . . . Hauler 15 | . 1 . 3 4 3 . . . . . 1 . . . . . . . . . . . 3 . Recycler 11 | 1 3 . . 1 3 . . . . 2 1 . . . . . . . . . . . . . Mechanic 1 | . . . . . . . . . . . . . . . . . . . . . . . . 1 Operator 6 | . 2 . 2 . . . . . . . 1 . 1 . . . . . . . . . . . Drone 3 | . . . . . . . . . 2 . . . . . . . . . . . . 1 . . Watcher 8 | . 1 . 2 1 . . . . . . 1 . . . . . . 2 . . . . . 1 Swarmer 56 | . 6 . 7 4 5 4 7 . . 4 6 . . 8 . . . . . . . . 1 4 Saboteur 2 | . . . . . . . . . . . . . . . . . . . . . 1 . . 1 Grunt 84 | . 4 . 18 2 11 7 1 . . 3 16 . 4 2 2 . . . . . . . . 14 Brawler 12 | . . . 1 . 2 1 . . . 1 . . . 2 1 . . . . . . . . 4 Duelist 3 | . . . 2 . . . . . . . . . 1 . . . . . . . . . . . Protector 3 | . . . . . . . . . . . . . . . . . . . . . 1 . . 2 Sentry 34 | . . . 8 7 3 . . . . 6 1 . . 2 . . . 1 . . 1 . . 5 Demolisher 2 | . . . . . . . . . . . . . . . . . . . . . . . 1 1 Specialist 2 | . . . . . . . . . . . . . . . . . . . . . . . . 2 Hunter 17 | . . . . 1 . . . . . . 1 . 1 . 2 . 4 2 . . . . . 6 Programmer 22 | . . . . . 3 . . . 1 2 . . . . 1 . 3 4 . . . . . 8 Heavy 1 | . . . . . . . . . . . . . . . . . . . . . . . . 1 Behemoth 2 | . . . . . . . . . . . . . . . . . . . . . 1 . . 1 Cetus Guard 3 | . . . . . . . . . . . . 3 . . . . . . . . . . . . Enhanced Grunt 1 | . . . . . . . . . . . . . 1 . . . . . . . . . . . Subdweller 4 | . . 4 . . . . . . . . . . . . . . . . . . . . . . Decomposer 3 | . . . . . . . . . . . . . . 1 . . . . 2 . . . . . Savage 2 | . . . . . . . . . . . 1 . . . . . . . . . 1 . . . Butcher 1 | . . . . . . . . . . . . 1 . . . . . . . . . . . . Best Kill Streak 11 | 3 6 1 7 5 5 4 4 . 1 9 7 2 4 5 3 . 3 2 . . 1 1 2 11 Combat Bots Only 11 | . 6 1 7 4 5 4 4 . 1 6 6 2 4 5 3 . 3 2 . . 1 1 1 11 Max Kills in Single Turn 4 | 1 2 1 2 3 3 3 3 . 1 2 3 1 2 4 2 . 1 1 1 . 1 1 1 3 Gunslinging 1 | . 1 . 1 . . . . . . . . . . . 1 . . . . . . . . . Exploded 4 | . . . . 3 3 3 3 . . . 1 . . 4 1 . . . . . . . . 3 Melee 1 | . . . . . . . 1 . . . 1 . . . . . . . . . . . . 1 Uniques/NPCs Destroyed 1 | . . . . . . . . . . . . 1 . . . . . . . . . . . . A7 (-6/Cetus) Combat | -11 -10 -10 -8 -8 -7 -7 -7 -7 -6 -6 -6 -6 -5 -5 -5 -5 -4 -4 -4 -4 -4 -3 -3 -3 -------- Run | Yrd Mat Sub Mat Sto Fac Low Low Zio Pro Fac Ext Cet Fac Upp Upp Zhi Pro Fac Upp Upp War Pro Res Arm Hostile Shots Fired 1880 | . 50 33 216 87 168 68 33 . 6 200 95 5 52 21 27 . 143 93 . 4 40 . 36 503 Missed 604 | . 22 14 66 14 43 21 8 . 1 66 30 2 12 4 7 . 54 36 . 1 9 . 5 189 Hits 1276 | . 28 19 150 73 125 47 25 . 5 134 65 3 40 17 20 . 89 57 . 3 31 . 31 314 Melee 45 | . . . 9 . 8 6 1 . . 2 . . . . 1 . 1 . . . . . 4 13 Projectile 1231 | . 28 19 141 73 117 41 24 . 5 132 65 3 40 17 19 . 88 57 . 3 31 . 27 301 AOE 4 | . . 1 . . . . . . . . . . . . . . . . . . . . 2 1 Critical Strikes 53 | . 1 . 7 3 4 4 . . . 3 1 1 . . 1 . 6 2 . . 4 . 1 15 Actively Blocked 17 | . . . . . . . . . . . . . . . . . . . . . 4 . 1 12 Part Disruptions 6 | . . . . . 3 . . . 1 1 . . . . . . . . . . . . . 1 Damage Taken 23539 | . 350 525 2412 1025 1904 876 387 . 74 1376 1199 91 633 349 389 . 1801 1185 . 71 602 . 929 7361 Core 2658 | . 42 139 250 119 180 51 14 . . 93 116 26 . 74 19 . 150 9 . 22 48 . . 1306 Absorbed by Shields 624 | . . . . . . . . . . . . 13 102 29 . . 20 . . . 125 . . 335 Reduced by Siege Mode 12 | . . . . . . . . . . . . . . . . . . . . . . . . 12 Redirected to Shielding 120 | . . . . . . . . . . . . . . . . . . . . . . . . 120 Regen/Repaired (Parts) 1638 | . . . . 371 . . . . . 565 . . 41 . . . . . . . 661 . . . Core Remaining (%) 65 | 100 . 27 . 32 . . . . 65 . . 72 . . . . 67 . . . . 93 . . Volleys Fired 902 | 12 65 44 104 54 88 34 4 . 10 53 66 24 31 24 11 11 23 37 3 28 21 12 25 118 Largest 4 | 2 2 2 3 3 3 3 2 . 3 4 4 4 4 2 4 1 4 4 2 1 4 4 4 4 Hottest 242 | 60 112 80 71 71 76 90 53 . 143 181 171 157 210 56 126 20 200 195 120 90 123 183 188 242 Shots Fired 2235 | 24 118 69 308 150 222 81 6 . 24 143 185 73 95 36 30 11 72 82 5 27 68 21 91 294 Gun 1508 | 24 91 60 308 146 205 68 3 . 20 93 120 9 38 24 25 . 51 49 2 . 63 9 74 26 Cannon 673 | . 27 9 . 1 10 11 . . 4 50 65 63 57 . 2 . 21 33 3 27 5 12 17 256 Launcher 43 | . . . . 3 7 2 3 . . . . 1 . 12 3 . . . . . . . . 12 Special 11 | . . . . . . . . . . . . . . . . 11 . . . . . . . . Kinetic 1865 | 12 91 42 308 147 215 79 3 . 20 93 146 65 75 24 25 . 57 57 2 . 63 9 74 258 Thermal 234 | 12 . . . . . . . . 4 49 28 . 20 . 2 11 15 25 3 27 5 12 17 4 Explosive 43 | . . . . 3 7 2 3 . . . . 1 . 12 3 . . . . . . . . 12 Electromagnetic 83 | . 27 27 . . . . . . . 1 11 7 . . . . . . . . . . . 10 Entropic 10 | . . . . . . . . . . . . . . . . . . . . . . . . 10 Robot Hit Streak 38 | 5 22 15 15 18 38 14 4 . 5 19 20 20 10 7 26 28 14 8 1 . 12 3 14 18 Robot Miss Streak 6 | 4 4 2 5 3 6 2 1 . 6 1 2 3 3 2 . 1 3 2 1 . 3 2 3 5 Penetration Max 1 | . . . . . 1 . . . . 1 1 . 1 1 . . 1 . . . 1 . 1 1 Secondary Targets 21 | . 2 . 8 1 1 2 . . . . . . . . 3 . . 1 . . 1 . 1 1 Max Gunslinging Chain 2 | . 1 . 1 1 1 1 . . . . . . . . 2 . . 1 . . 1 . 1 1 Shots Hit Robots 1372 | 14 76 40 211 107 142 58 3 . 8 68 123 42 52 17 25 10 42 45 2 . 39 5 59 184 Core Hits 648 | 6 29 6 96 37 61 23 9 . 4 40 62 17 24 28 11 4 16 21 2 . 14 1 22 115 Critical Kills 18 | . . 1 . . 3 1 . . 1 . 1 2 . . 1 . 1 3 . . 3 . . 1 Critical Parts Destroyed 20 | . . . 1 . 2 . . . . . 2 1 . 1 1 . 4 1 . . 3 . 2 2 Critical Strikes 60 | . . 1 1 . 5 1 . . 1 . 5 4 . 1 2 1 5 4 . . 8 . 2 19 Destroy 39 | . . 1 1 . 5 1 . . 1 . 3 3 . 1 2 . 5 4 . . 8 . 2 2 Blast 18 | . . . . . . . . . . . 1 1 . . . . . . . . . . . 16 Corrupt 1 | . . . . . . . . . . . 1 . . . . . . . . . . . . . Sever 1 | . . . . . . . . . . . . . . . . 1 . . . . . . . . Detonate 1 | . . . . . . . . . . . . . . . . . . . . . . . . 1 Melee Attacks 40 | . . 31 . 6 . . . . . . 3 . . . . . . . . . . . . . Impact . | . . . . . . . . . . . . . . . . . . . . . . . . . Slashing 37 | . . 31 . 6 . . . . . . . . . . . . . . . . . . . . Piercing 3 | . . . . . . . . . . . 3 . . . . . . . . . . . . . Sneak Attacks 1 | . . . . . . . . . . . 1 . . . . . . . . . . . . . Combat Hostiles . | . . . . . . . . . . . . . . . . . . . . . . . . . Follow-up Attacks . | . . . . . . . . . . . . . . . . . . . . . . . . . Damage Inflicted 38845 | 168 1216 496 3015 1794 3424 1146 425 . 133 1995 3111 1417 1472 2063 824 174 1199 1194 59 . 1194 57 1717 10552 Guns 19065 | 168 764 384 2983 1563 2343 762 18 . 133 1270 1842 158 683 354 563 . 858 895 24 . 1194 57 1341 708 Cannons 11409 | . 406 112 . . 24 160 . . . 698 1052 1259 789 . . . 341 248 35 . . . 350 5935 Explosions 7905 | . 46 . . 212 1048 224 384 . . . 112 . . 1709 261 . . 51 . . . . . 3858 Melee 66 | . . . . . . . . . . . 66 . . . . . . . . . . . . . Ramming 226 | . . . 32 19 9 . 23 . . 27 39 . . . . . . . . . . . 26 51 Kinetic 26871 | 85 764 452 2983 1563 2367 922 18 . 133 1270 2257 1417 1175 354 563 . 924 968 24 . 1194 57 1341 6040 Thermal 2798 | 83 46 . . . . . . . . 698 535 . 297 . . 174 275 175 35 . . . 350 130 Explosive 7617 | . . . . 212 1048 224 384 . . . . . . 1709 261 . . 51 . . . . . 3728 Electromagnetic 924 | . 406 44 . . . . . . . . 214 . . . . . . . . . . . . 260 Impact . | . . . . . . . . . . . . . . . . . . . . . . . . . Slashing . | . . . . . . . . . . . . . . . . . . . . . . . . . Piercing 66 | . . . . . . . . . . . 66 . . . . . . . . . . . . . Entropic 343 | . . . . . . . . . . . . . . . . . . . . . . . . 343 Highest Corruption 36 | . . . 4 8 16 18 18 18 1 4 4 4 . . 1 1 4 4 4 4 4 . 1 36 Average Corruption 5 | . . . 3 4 6 16 18 18 1 4 4 4 . . 1 1 3 3 4 4 4 . 1 5 Corruption Purged . | . . . . . . . . . . . . . . . . . . . . . . . . . Corruption Blocked . | . . . . . . . . . . . . . . . . . . . . . . . . . Effects 473 | . . . 28 55 64 69 36 6 5 11 63 14 . . 8 5 21 22 11 11 1 . 2 41 Message Errors 110 | . . . 5 11 20 12 10 2 1 . 9 4 . . 2 1 8 8 4 . 1 . 1 11 Matter Fused 103 | . . . 6 15 12 11 9 2 1 3 16 1 . . 1 1 7 4 2 3 . . . 9 Heat Flow Errors 54 | . . . 3 6 7 5 8 2 . 1 10 1 . . 3 . . 2 2 1 . . . 3 Energy Discharges 61 | . . . 3 8 4 8 4 . 1 2 11 3 . . 1 2 4 4 . 2 . . . 4 Parts Rejected 3 | . . . . . 1 2 . . . . . . . . . . . . . . . . . . Parts Fused 5 | . . . . 1 1 . . . 1 . 1 . . . . . . . 1 . . . . . Data Loss (minor) 60 | . . . 3 8 7 12 3 . 1 1 7 2 . . . 1 . 3 1 4 . . 1 6 Data Loss (major) 21 | . . . 4 3 3 5 1 . . 1 1 2 . . . . 1 . . . . . . . Misfires 20 | . . . 1 . 3 4 1 . . 1 5 1 . . 1 . . . 1 . . . . 2 Alerts 7 | . . . . . 1 2 . . . 1 2 . . . . . . 1 . . . . . . Misdirections 5 | . . . . . . . . . . . . . . . . . . . . . . . . 5 Weapon Failures 24 | . . . 3 3 5 8 . . . 1 1 . . . . . 1 . . 1 . . . 1 Overload Shots . | . . . . . . . . . . . . . . . . . . . . . . . . . Overflow Damage 480 | . . . . 3 21 1 . . . 13 . . 47 61 . 44 . 11 . . . . . 279 Projectiles 270 | . . . . . . . . . . 13 . . 47 . . 44 . . . . . . . 166 Explosions 210 | . . . . 3 21 1 . . . . . . . 61 . . . 11 . . . . . 113 Melee . | . . . . . . . . . . . . . . . . . . . . . . . . . Knockbacks 50 | . . 2 . . . 1 1 . . . 3 4 5 . . . . . . . . . . 34 Impact 3 | . . . . . . . 1 . . . 1 . . . . . . . . . . . . 1 Kinetic 46 | . . 2 . . . 1 . . . . 2 4 5 . . . . . . . . . . 32 Secondary 1 | . . . . . . . . . . . . . . . . . . . . . . . . 1 Self-Inflicted Damage 551 | . . . . . 126 51 40 . . . . . . . . . . . . . . . . 334 Shots 12 | . . . . . 3 2 1 . . . . . . . . . . . . . . . . 6 Rammed 18 | . . . 2 3 1 . 3 . . 4 1 . . . . . . . . . . . 3 1 Targets Rammed 22 | . . . 2 3 1 . 4 . . 4 2 . . . . . . . . . . . 3 3 Kicked . | . . . . . . . . . . . . . . . . . . . . . . . . . Crushed 4 | . . . . . . . 1 . . . 1 . . . . . . . . . . . . 2 Highest Temperature 424 | 20 83 . 352 242 249 394 198 242 80 424 277 365 339 2 207 . 370 225 132 64 12 . . 339 Average Temperature 84 | 20 33 . 81 101 60 150 90 107 24 81 71 118 132 1 95 . 133 41 74 32 7 . . 84 Received Heat Transfer 4797 | . 132 18 1089 288 465 333 36 . . 468 384 . 197 54 72 . 434 138 . 18 52 . 39 580 Effects 9 | . . . 1 . . 2 . . . 1 . . 1 . . . 1 . . . . . . 3 Shutdowns 3 | . . . 1 . . . . . . 1 . . . . . . 1 . . . . . . . Interference 6 | . . . . . . 2 . . . . . . 1 . . . . . . . . . . 3 Siege Activations 5 | . . . . . . . . . . . . . . . . . . . . . . . . 5 Total Turns 85 | . . . . . . . . . . . . . . . . . . . . . . . . 85 Longest Duration 52 | . . . . . . . . . . . . . . . . . . . . . . . . 52 Martial Activations . | . . . . . . . . . . . . . . . . . . . . . . . . . Shielding Activations . | . . . . . . . . . . . . . . . . . . . . . . . . . Robots Disrupted . | . . . . . . . . . . . . . . . . . . . . . . . . . Combat Hostiles . | . . . . . . . . . . . . . . . . . . . . . . . . . Robots Corrupted . | . . . . . . . . . . . . . . . . . . . . . . . . . Combat Hostiles . | . . . . . . . . . . . . . . . . . . . . . . . . . Parts Fried 4 | . 3 . . . 1 . . . . . . . . . . . . . . . . . . . Impact Corruptions . | . . . . . . . . . . . . . . . . . . . . . . . . . Robots Melted . | . . . . . . . . . . . . . . . . . . . . . . . . . Combat Hostiles . | . . . . . . . . . . . . . . . . . . . . . . . . . Parts Melted 7 | . . . . . . . . . . 1 4 . . . . . . . . . . . 2 . Heat Transferred 3607 | 200 100 . . . . . . . . 1000 750 . 333 . . 286 296 185 37 . . . 370 50 Parts Sabotaged 2 | . . . . . . . . . . . . . . . . . . . . . . . . 2 Parts Stolen . | . . . . . . . . . . . . . . . . . . . . . . . . . Parts Stripped . | . . . . . . . . . . . . . . . . . . . . . . . . . Power Chain Reactions 2 | . 2 . . . . . . . . . . . . . . . . . . . . . . . Alert | -11 -10 -10 -8 -8 -7 -7 -7 -7 -6 -6 -6 -6 -5 -5 -5 -5 -4 -4 -4 -4 -4 -3 -3 -3 ------- Run | Yrd Mat Sub Mat Sto Fac Low Low Zio Pro Fac Ext Cet Fac Upp Upp Zhi Pro Fac Upp Upp War Pro Res Arm Maximum Alert Level 4 | . . . 3 . 3 . . . . 1 2 1 2 . . . . . . . . . 1 4 Low Security (%) 66 | 100 100 . 33 100 34 . . . . 62 62 83 53 . . . . 100 . . . . 75 42 Level 1 12 | . . . 5 . 28 . . . . 37 2 16 29 . . . . . . . . . 24 9 Level 2 14 | . . . 35 . 26 . . . . . 35 . 16 . . . . . . . . . . 20 Level 3 5 | . . . 25 . 10 . . . . . . . . . . . . . . . . . . 24 Level 4 . | . . . . . . . . . . . . . . . . . . . . . . . . 2 Level 5 . | . . . . . . . . . . . . . . . . . . . . . . . . . High Security . | . . . . . . . . . . . . . . . . . . . . . . . . . Max Security . | . . . . . . . . . . . . . . . . . . . . . . . . . Peak Influence 1353 | 10 135 . 761 186 724 . . . . 300 571 254 506 . . . . 126 . . . . 300 1353 Initial 300 | . . . . 119 33 . . . . 300 116 249 63 . . . . . . . . . 300 . Average 210 | 2 45 . 434 88 354 . . . . 175 237 144 189 . . . . 34 . . . . 112 388 Influence Increases 11811 | 25 420 . 1369 754 1407 285 195 . 40 867 1410 326 814 299 240 5 175 367 . . 255 5 406 2147 Destroy 0b10 Robot/C 5940 | . 200 . 720 360 720 240 160 . 20 320 840 160 360 280 120 . 140 140 . . 180 . 40 940 Destroy 0b10 Robot/NC 385 | 25 60 . 45 35 45 . . . 10 35 35 10 15 . . 5 . 10 . . 10 5 20 20 Destroy Leader 1182 | . 44 . 180 130 178 30 20 . 10 100 114 . 64 10 30 . 20 44 . . . . 16 192 Allied During Kill 1001 | . . . . 74 165 . . . . . 363 108 217 9 . . . . . . 65 . . . Successful Hack 269 | . 50 . 26 40 57 . . . . 50 4 . 8 . . . . 11 . . . . 18 5 Disable Machine 600 | . . . 15 60 135 . . . . 30 30 30 15 . . . . 30 . . . . . 255 Anti-Garrison Action 200 | . . . 200 . . . . . . . . . . . . . . . . . . . . . Destroy Structure 719 | . 6 . 3 25 77 . . . . 32 24 18 90 . . . . 102 . . . . 12 330 Advance Influence 600 | . . . . . . . . . . 300 . . . . . . . . . . . . 300 . Partial Spotted 60 | . . . 45 . . . . . . . . . . . . . . . . . . . . 15 Lose Combat Pursuer 855 | . 60 . 135 30 30 15 15 . . . . . 45 . 90 . 15 30 . . . . . 390 Influence Decreases 10458 | 25 387 33 1085 963 790 789 363 20 40 628 1203 659 439 488 391 153 175 327 40 . 98 162 406 794 Entered New Map 1466 | . . 17 . 165 42 257 36 20 . . 123 197 50 182 57 148 . . 15 . . 157 . . Time Decay 6916 | 25 377 16 495 624 608 502 327 . 40 568 660 302 349 286 294 5 153 307 25 . 48 5 406 494 Lost Part 772 | . 10 . 140 30 40 30 . . . 60 70 20 . . 20 . 22 20 . . 10 . . 300 Lost Ally 560 | . . . . . 100 . . . . . 200 140 40 20 20 . . . . . 40 . . . Purge Threat 744 | . . . 450 144 . . . . . . 150 . . . . . . . . . . . . . Squads Dispatched 55 | . 1 . 7 1 9 . . . . 8 5 . 4 . . . . 4 . . . . 6 10 Investigation 14 | . 1 . 4 1 2 . . . . 1 2 . 1 . . . . . . . . . 2 . Extermination 16 | . . . . . 4 . . . . 3 . . 1 . . . . 3 . . . . . 5 Reinforcement 16 | . . . 1 . 2 . . . . 1 3 . 2 . . . . 1 . . . . 4 2 Assault 3 | . . . . . . . . . . . . . . . . . . . . . . . . 3 Garrison 6 | . . . 2 . 1 . . . . 3 . . . . . . . . . . . . . . Intercept . | . . . . . . . . . . . . . . . . . . . . . . . . . Searches Triggered . | . . . . . . . . . . . . . . . . . . . . . . . . . Construction Impeded 3 | . . . . . 1 . . . . . . . 1 . . . . . . . . . 1 . Haulers Reinforced 3 | . . . . . . . . . . . . . 1 . . . . . . . . . 2 . Active Scanning Responses . | . . . . . . . . . . . . . . . . . . . . . . . . . Cargo Convoy Interrupts . | . . . . . . . . . . . . . . . . . . . . . . . . . Stealth | -11 -10 -10 -8 -8 -7 -7 -7 -7 -6 -6 -6 -6 -5 -5 -5 -5 -4 -4 -4 -4 -4 -3 -3 -3 --------- Run | Yrd Mat Sub Mat Sto Fac Low Low Zio Pro Fac Ext Cet Fac Upp Upp Zhi Pro Fac Upp Upp War Pro Res Arm Distress Signals 32 | . . . 6 1 1 . . . . 2 2 2 1 . . . . . . . 2 . 7 8 Communications Jammed . | . . . . . . . . . . . . . . . . . . . . . . . . . Distress Signals . | . . . . . . . . . . . . . . . . . . . . . . . . . Times Spotted 466 | . 25 7 59 27 44 13 10 . 3 21 43 9 23 6 10 . 12 16 . 1 24 2 19 92 Peak Tracking Total 20 | . 6 2 9 4 5 4 4 . 2 7 6 5 7 5 4 . 4 4 . 1 12 1 5 20 Tactical Retreats 30 | . 3 . 5 2 2 1 1 . . . . . 3 . 3 . 1 2 . . . . . 7 Traps | -11 -10 -10 -8 -8 -7 -7 -7 -7 -6 -6 -6 -6 -5 -5 -5 -5 -4 -4 -4 -4 -4 -3 -3 -3 ------- Run | Yrd Mat Sub Mat Sto Fac Low Low Zio Pro Fac Ext Cet Fac Upp Upp Zhi Pro Fac Upp Upp War Pro Res Arm Traps Triggered 20 | . 1 1 1 4 7 . . . . . 4 . . . . . . 1 . . . . 1 . Indirectly . | . . . . . . . . . . . . . . . . . . . . . . . . . Trap Hack Attempts . | . . . . . . . . . . . . . . . . . . . . . . . . . Triggered . | . . . . . . . . . . . . . . . . . . . . . . . . . Disarmed . | . . . . . . . . . . . . . . . . . . . . . . . . . Reprogrammed . | . . . . . . . . . . . . . . . . . . . . . . . . . Reused . | . . . . . . . . . . . . . . . . . . . . . . . . . Traps Extracted . | . . . . . . . . . . . . . . . . . . . . . . . . . Installed . | . . . . . . . . . . . . . . . . . . . . . . . . . Triggered . | . . . . . . . . . . . . . . . . . . . . . . . . . Machines | -11 -10 -10 -8 -8 -7 -7 -7 -7 -6 -6 -6 -6 -5 -5 -5 -5 -4 -4 -4 -4 -4 -3 -3 -3 ---------- Run | Yrd Mat Sub Mat Sto Fac Low Low Zio Pro Fac Ext Cet Fac Upp Upp Zhi Pro Fac Upp Upp War Pro Res Arm Machines Disabled 41 | . . 1 1 4 9 . . . . 2 2 2 1 . . . . 2 . . . . . 17 Max in Single Turn 4 | . . 1 1 1 3 . . . . 1 1 1 1 . . . . 1 . . . . . 4 Garrison Access 3 | . . . 1 . . . . . . . . . . . . . . 1 . . . . 1 . Energy Cycler 1 | . . . . . . . . . . . 1 . . . . . . . . . . . . . Machines Repaired . | . . . . . . . . . . . . . . . . . . . . . . . . . Machines Dismantled . | . . . . . . . . . . . . . . . . . . . . . . . . . Machines Sabotaged . | . . . . . . . . . . . . . . . . . . . . . . . . . Overloaded Fab Kills . | . . . . . . . . . . . . . . . . . . . . . . . . . Hacking | -11 -10 -10 -8 -8 -7 -7 -7 -7 -6 -6 -6 -6 -5 -5 -5 -5 -4 -4 -4 -4 -4 -3 -3 -3 --------- Run | Yrd Mat Sub Mat Sto Fac Low Low Zio Pro Fac Ext Cet Fac Upp Upp Zhi Pro Fac Upp Upp War Pro Res Arm Machines Accessed 111 | . 9 1 11 13 13 . 1 1 . 11 12 3 5 . . 9 . 6 1 . 5 . 4 6 Terminals 65 | . 7 . 7 11 8 . 1 . . 6 11 3 2 . . . . 3 . . . . 2 4 Fabricators 5 | . . . . . 3 . . . . 1 . . . . . . . . . . . . . 1 Repair Stations 8 | . 1 . . 2 . . . . . 3 . . 2 . . . . . . . . . . . Recycling Units 7 | . 1 . 1 . 2 . . . . . 1 . 1 . . . . . . . . . . 1 Scanalyzers 6 | . . . 2 . . . . . . . . . . . . . . 2 . . . . 2 . Garrison Access 3 | . . . 1 . . . . . . 1 . . . . . . . 1 . . . . . . Total Hacks 328 | . 25 9 42 37 41 . 2 3 . 31 23 7 13 . . 48 . 19 1 . 12 . 6 9 Successful 194 | . 17 9 27 19 20 . 2 3 . 16 5 . 5 . . 48 . 5 1 . 12 . 3 2 Failed 134 | . 8 . 15 18 21 . . . . 15 18 7 8 . . . . 14 . . . . 3 7 Catastrophic 31 | . . . 2 4 5 . . . . 1 4 4 4 . . . . 4 . . . . 1 2 Database Lockouts . | . . . . . . . . . . . . . . . . . . . . . . . . . Manual 79 | . 15 . 13 5 21 . . . . 7 2 1 4 . . . . 2 . . . . 2 7 Terminals 181 | . 22 . 32 28 32 . 2 . . 12 21 7 5 . . . . 11 . . . . 3 6 Fabricators 9 | . . . . . 6 . . . . 2 . . . . . . . . . . . . . 1 Repair Stations 32 | . 1 . . 9 . . . . . 15 . . 7 . . . . . . . . . . . Recycling Units 11 | . 2 . 1 . 3 . . . . . 2 . 1 . . . . . . . . . . 2 Scanalyzers 17 | . . . 8 . . . . . . . . . . . . . . 6 . . . . 3 . Garrison Access 5 | . . . 1 . . . . . . 2 . . . . . . . 2 . . . . . . Terminal Hacks 131 | . 9 9 14 10 9 . 2 3 . 4 4 . 1 . . 48 . 2 1 . 12 . 1 2 Record 61 | . . 8 1 . . . 2 . . . 3 . . . . 36 . . . . 11 . . . Part Schematic 9 | . . . . . 2 . . 3 . . . . . . . 4 . . . . . . . . Robot Analysis 8 | . . . 2 1 1 . . . . . . . . . . 4 . . . . . . . . Prototype ID Bank 11 | . 2 . 1 2 1 . . . . . . . . . . 4 . . . . . . 1 . Open Door 7 | . . . . 3 . . . . . 1 . . . . . . . . 1 . 1 . . 1 Level Access Points 1 | . . . . . . . . . . . . . . . . . . 1 . . . . . . Branch Access Points 5 | . 1 . 1 . 1 . . . . 1 . . 1 . . . . . . . . . . . Terminal Index 4 | . 1 . 1 . 1 . . . . . . . . . . . . . . . . . . 1 Fabricator Index 2 | . . . . . 1 . . . . . . . . . . . . 1 . . . . . . Alert Level 2 | . . . 2 . . . . . . . . . . . . . . . . . . . . . Unreport Threat 6 | . . . 3 2 . . . . . . 1 . . . . . . . . . . . . . Locate Traps 3 | . 1 . 1 . . . . . . 1 . . . . . . . . . . . . . . Dispatch Records 1 | . 1 . . . . . . . . . . . . . . . . . . . . . . . Hauler Manifests 1 | . 1 . . . . . . . . . . . . . . . . . . . . . . . Registered Components 4 | . 1 . 1 1 1 . . . . . . . . . . . . . . . . . . . Zone Layout 5 | . 1 . 1 1 1 . . . . 1 . . . . . . . . . . . . . . Proto ID Catalog 1 | . . 1 . . . . . . . . . . . . . . . . . . . . . . Fabricator Hacks 5 | . . . . . 3 . . . . 2 . . . . . . . . . . . . . . Network Status 3 | . . . . . 3 . . . . . . . . . . . . . . . . . . . Load Schematic 1 | . . . . . . . . . . 1 . . . . . . . . . . . . . . Build 1 | . . . . . . . . . . 1 . . . . . . . . . . . . . . Repair Station Hacks 20 | . . . . 7 . . . . . 9 . . 4 . . . . . . . . . . . Scan Component 11 | . . . . 4 . . . . . 5 . . 2 . . . . . . . . . . . Repair 9 | . . . . 3 . . . . . 4 . . 2 . . . . . . . . . . . Recycling Unit Hacks 4 | . . . 1 . 2 . . . . . 1 . . . . . . . . . . . . . Report Inventory 1 | . . . 1 . . . . . . . . . . . . . . . . . . . . . Retrieve Components 3 | . . . . . 2 . . . . . 1 . . . . . . . . . . . . . Scanalyzer 11 | . . . 7 . . . . . . . . . . . . . . 2 . . . . 2 . Insert Component 9 | . . . 5 . . . . . . . . . . . . . . 2 . . . . 2 . Analyze 2 | . . . 2 . . . . . . . . . . . . . . . . . . . . . Garrison Access Hacks 1 | . . . . . . . . . . . . . . . . . . 1 . . . . . . Seal Access 1 | . . . . . . . . . . . . . . . . . . 1 . . . . . . Unauthorized Hacks 22 | . 8 . 5 2 6 . . . . 1 . . . . . . . . . . . . . . Terminals 17 | . 7 . 4 2 4 . . . . . . . . . . . . . . . . . . . Assimilate 1 | . 1 . . . . . . . . . . . . . . . . . . . . . . . Botnet 14 | . 5 . 4 2 3 . . . . . . . . . . . . . . . . . . . Operators 2 | . 1 . . . 1 . . . . . . . . . . . . . . . . . . . Fabricators 2 | . . . . . 2 . . . . . . . . . . . . . . . . . . . Fabnet 1 | . . . . . 1 . . . . . . . . . . . . . . . . . . . Haulers 1 | . . . . . 1 . . . . . . . . . . . . . . . . . . . Repair Stations 2 | . 1 . . . . . . . . 1 . . . . . . . . . . . . . . Mechanics 2 | . 1 . . . . . . . . 1 . . . . . . . . . . . . . . Recycling Units . | . . . . . . . . . . . . . . . . . . . . . . . . . Scanalyzers . | . . . . . . . . . . . . . . . . . . . . . . . . . Garrison Access 1 | . . . 1 . . . . . . . . . . . . . . . . . . . . . Jam 1 | . . . 1 . . . . . . . . . . . . . . . . . . . . . Data Cores Recovered 6 | . 2 . 2 . . . . . . . 1 . 1 . . . . . . . . . . . Used 1 | . 1 . . . . . . . . . . . . . . . . . . . . . . . Hacking Detections 83 | . 8 . 9 11 10 . 1 . . 10 11 3 5 . . . . 5 . . . . 4 6 Full Trace Events 11 | . 1 . 2 2 2 . . . . 1 2 . 1 . . . . . . . . . . . Feedback Events 1 | . . . 1 . . . . . . . . . . . . . . . . . . . . . Corruption 1 | . . . 1 . . . . . . . . . . . . . . . . . . . . . Feedback Blocked . | . . . . . . . . . . . . . . . . . . . . . . . . . Robot Schematics Acquired 2 | . . . . . . . . 2 . . . . . . . . . . . . . . . . Robots Built . | . . . . . . . . . . . . . . . . . . . . . . . . . Authchips . | . . . . . . . . . . . . . . . . . . . . . . . . . Time . | . . . . . . . . . . . . . . . . . . . . . . . . . Total Robot Build Rating . | . . . . . . . . . . . . . . . . . . . . . . . . . Part Schematics Acquired 26 | . . . 2 . 2 . . 18 . . . . . . . 4 . . . . . . . . Parts Built 2 | . . . . . . . . . . 2 . . . . . . . . . . . . . . Authchips . | . . . . . . . . . . . . . . . . . . . . . . . . . Time 42 | . . . . . . . . . . 42 . . . . . . . . . . . . . . Total Part Build Rating 8 | . . . . . . . . . . 8 . . . . . . . . . . . . . . Parts Repaired 8 | . . . . 3 . . . . . 4 . . 1 . . . . . . . . . . . Time 424 | . . . . 102 . . . . . 170 . . 152 . . . . . . . . . . . Parts Recycled . | . . . . . . . . . . . . . . . . . . . . . . . . . Recycled Matter . | . . . . . . . . . . . . . . . . . . . . . . . . . Retrieved Matter . | . . . . . . . . . . . . . . . . . . . . . . . . . Retrieved Components 20 | . . . . . 20 . . . . . . . . . . . . . . . . . . . Parts Scanalyzed 3 | . . . 2 . . . . . . . . . . . . . . 1 . . . . . . Part Schematics Acquired 2 | . . . 2 . . . . . . . . . . . . . . . . . . . . . Parts Damaged . | . . . . . . . . . . . . . . . . . . . . . . . . . Bothacking | -11 -10 -10 -8 -8 -7 -7 -7 -7 -6 -6 -6 -6 -5 -5 -5 -5 -4 -4 -4 -4 -4 -3 -3 -3 ------------ Run | Yrd Mat Sub Mat Sto Fac Low Low Zio Pro Fac Ext Cet Fac Upp Upp Zhi Pro Fac Upp Upp War Pro Res Arm Used RIF Installer . | . . . . . . . . . . . . . . . . . . . . . . . . . Robots Hacked 2 | . . . . . . . . . . . 1 . . 1 . . . . . . . . . . Non-combat . | . . . . . . . . . . . . . . . . . . . . . . . . . Combat 2 | . . . . . . . . . . . 1 . . 1 . . . . . . . . . . Robot Hacks Applied . | . . . . . . . . . . . . . . . . . . . . . . . . . Relay Couplers Released 7 | . . . . . 4 . . . . . . . . . . . . . . . . . 3 . Machine Destruction 3 | . . . . . . . . . . . . . . . . . . . . . . . 3 . Programmers 4 | . . . . . 4 . . . . . . . . . . . . . . . . . . . Fabnet Peak Effective % 3 | . . . . . . . . . 3 3 3 3 1 1 1 1 . . . . . . . . Autooverrided 2 | . . . . . . . . . . . 1 . . 1 . . . . . . . . . . Robots Rewired 26 | . . . . . . . . . . . 19 . . 2 . . . . . . 5 . . . Allies Hacked 1 | . . . . . 1 . . . . . . . . . . . . . . . . . . . Hacks Repelled . | . . . . . . . . . . . . . . . . . . . . . . . . . Allies | -11 -10 -10 -8 -8 -7 -7 -7 -7 -6 -6 -6 -6 -5 -5 -5 -5 -4 -4 -4 -4 -4 -3 -3 -3 -------- Run | Yrd Mat Sub Mat Sto Fac Low Low Zio Pro Fac Ext Cet Fac Upp Upp Zhi Pro Fac Upp Upp War Pro Res Arm Total Allies 45 | . 1 . . 10 . . . . . . 21 5 . 3 . . . . . . 5 . . . Largest Group 12 | . 1 . . 10 8 . . . . . 12 7 3 2 . . . . . . 5 1 . . Highest-Rated Group 631 | . 10 . . 173 141 . . . . . 337 631 288 58 . . . . . . 286 64 . . Highest-Rated Ally 151 | . 10 . . 29 29 . . . . . 151 151 96 30 . . . . . . 68 64 . . Total Orders 2 | . . . . . . . . . . . 1 . . . . . . . . . . 1 . . STAY 2 | . . . . . . . . . . . 1 . . . . . . . . . . 1 . . Ally Attacks 363 | . . . . 31 100 . . . . . 114 29 39 13 . . . . . . 37 . . . Total Damage 8213 | . . . . 440 1071 . . . . . 1821 891 2122 192 . . . . . . 1676 . . . Kills 75 | . . . . 5 17 . . . . . 21 7 14 1 . . . . . . 10 . . . Allies Corrupted 3 | . . . . . 3 . . . . . . . . . . . . . . . . . . . Allies Melted 2 | . . . . . . . . . . . 2 . . . . . . . . . . . . . Intel | -11 -10 -10 -8 -8 -7 -7 -7 -7 -6 -6 -6 -6 -5 -5 -5 -5 -4 -4 -4 -4 -4 -3 -3 -3 ------- Run | Yrd Mat Sub Mat Sto Fac Low Low Zio Pro Fac Ext Cet Fac Upp Upp Zhi Pro Fac Upp Upp War Pro Res Arm Active Infowar (turns) 14288 | 12 1532 1342 442 78 . 395 461 1136 360 968 238 53 636 610 310 430 802 1478 582 408 824 563 463 165 Optics 805 | . . . 328 78 . . . . . . . . . . . . . 399 . . . . . . Sensors 6808 | . . . . . . . . . . . . . 568 570 307 430 750 1178 582 408 824 563 463 165 Terrain 8835 | 12 421 1029 . . . 395 461 1136 360 968 238 53 636 610 310 429 801 976 . . . . . . Structural 114 | . . . 114 . . . . . . . . . . . . . . . . . . . . . Seismic 1424 | . 1111 313 . . . . . . . . . . . . . . . . . . . . . . Robot Analysis Total 8 | . . . 2 1 1 . . . . . . . . . . 4 . . . . . . . . Derelict Logs Recovered 12 | . . 1 . . . 3 1 1 1 . . . . . 1 . 2 . 1 1 . . . . Drone Launches . | . . . . . . . . . . . . . . . . . . . . . . . . . Drone Recoveries . | . . . . . . . . . . . . . . . . . . . . . . . . . Exploration | -11 -10 -10 -8 -8 -7 -7 -7 -7 -6 -6 -6 -6 -5 -5 -5 -5 -4 -4 -4 -4 -4 -3 -3 -3 ------------- Run | Yrd Mat Sub Mat Sto Fac Low Low Zio Pro Fac Ext Cet Fac Upp Upp Zhi Pro Fac Upp Upp War Pro Res Arm Turns Passed 30131 | 83 1534 1661 1536 2422 2580 1351 811 2065 465 1711 2481 674 1096 625 650 443 970 1645 587 410 1001 566 1048 1716 Spaces Moved 15343 | 36 1043 1334 797 1185 1075 764 495 1275 264 631 857 250 524 307 277 225 376 864 338 210 511 319 540 846 Core 79 | . 1 . . . . . . . . . . . . . . . . . . . . . . 78 Treads 12139 | . 23 . 256 1185 1075 764 495 1275 264 631 857 250 524 307 277 225 376 864 338 210 511 319 540 573 Legs 165 | 36 129 . . . . . . . . . . . . . . . . . . . . . . . Wheels 2765 | . 890 1334 541 . . . . . . . . . . . . . . . . . . . . . Hover . | . . . . . . . . . . . . . . . . . . . . . . . . . Flight 195 | . . . . . . . . . . . . . . . . . . . . . . . . 195 Fastest Speed 39 | 120 90 100 90 166 161 158 158 158 158 162 238 160 160 166 166 166 166 167 167 167 167 167 165 39 Average Speed 162 | 120 106 104 126 170 163 158 158 158 161 231 241 226 170 166 211 167 221 167 167 167 167 167 166 144 Slowest Speed 330 | 120 250 105 166 250 170 161 158 158 162 243 243 242 330 166 246 246 246 167 167 167 167 167 168 250 Overloaded Moves . | . . . . . . . . . . . . . . . . . . . . . . . . . Propulsion Burnouts . | . . . . . . . . . . . . . . . . . . . . . . . . . Robots Hopped 1 | . . . . . . . . . . . . . . . . . . . . . . . . 1 Potential Cave-ins 8 | . . . . . . . . . . . 8 . . . . . . . . . . . . . Cave-ins Triggered . | . . . . . . . . . . . . . . . . . . . . . . . . . Teleports 1 | . . . . . . . . . . . . . . . . . 1 . . . . . . . Exploration Rate (%) 54 | 4 96 71 69 96 38 80 70 89 42 19 88 69 10 47 54 62 74 15 53 33 64 45 21 56 Regions Visited 24 Branch Regions 17 Pre-discovered Areas 11 | . . . . 1 . 1 . 3 . . . . . . . 3 . . 1 1 1 . . . Known Exits Taken 13 | . . . 1 . 1 1 . . 1 1 . 1 1 . . . . 1 1 1 1 1 1 . Unknown Exits Taken 11 | 1 1 1 . 1 . . 1 1 . . 1 . . 1 1 1 1 . . . . . . . Scrap Searched 29 | . . 11 . . . 1 3 3 . . . . . 1 . . 4 . 3 1 . 2 . . Spaces Dug 135 | . . 27 . 9 10 . . . 3 22 3 . 4 . 2 . 4 15 . 21 1 7 3 4 Terrain Destroyed 809 | . 5 28 . 27 91 35 16 . 5 30 32 13 21 116 56 . 35 60 2 27 6 11 10 183 Melee 28 | . . 27 . . . . . . . . 1 . . . . . . . . . . . . . Projectile 322 | . . 1 . . 4 2 . . 5 30 26 13 21 2 5 . 35 38 2 27 5 11 10 85 AOE 458 | . 5 . . 27 87 33 16 . . . 5 . . 114 51 . . 22 . . . . . 98 Terrain Rammed . | . . . . . . . . . . . . . . . . . . . . . . . . . Walls Destroyed . | . . . . . . . . . . . . . . . . . . . . . . . . . Machines Disabled . | . . . . . . . . . . . . . . . . . . . . . . . . . Actions | -11 -10 -10 -8 -8 -7 -7 -7 -7 -6 -6 -6 -6 -5 -5 -5 -5 -4 -4 -4 -4 -4 -3 -3 -3 --------- Run | Yrd Mat Sub Mat Sto Fac Low Low Zio Pro Fac Ext Cet Fac Upp Upp Zhi Pro Fac Upp Upp War Pro Res Arm Total 18888 | 51 1349 1496 1096 1465 1745 851 516 1334 284 779 1140 314 671 385 316 273 460 1001 356 240 625 335 641 1165 Wait 1459 | . 171 42 110 143 533 24 . 17 1 45 24 10 55 . 16 . 46 50 . 1 26 2 25 118 Move 15318 | 35 1042 1333 796 1184 1074 763 495 1274 263 630 856 249 523 306 276 224 375 863 337 209 510 318 539 844 Hop 1 | . . . . . . . . . . . . . . . . . . . . . . . . 1 Pick Up 227 | . 24 10 25 14 14 5 6 9 1 18 14 6 17 1 . 6 3 14 5 . 4 1 11 19 Fast Attach 89 | 2 4 1 15 11 5 3 . 9 . 1 3 5 7 . . 8 1 2 . . . . 3 9 Attach 105 | . 1 6 14 2 5 7 . 3 1 11 4 3 4 . 3 4 7 6 2 . . 1 3 18 Detach 34 | 1 1 1 4 1 3 1 . 7 . . . 3 . . . 4 . 3 1 . . . 1 3 Swap 237 | . 19 16 9 21 14 7 5 2 7 14 15 5 10 4 10 4 5 23 5 2 6 1 12 21 Drop 210 | 1 22 12 17 25 8 6 3 13 1 3 12 9 24 1 . 12 . 3 3 . 5 . 19 11 Fire 902 | 12 65 44 104 54 88 34 4 . 10 53 66 24 31 24 11 11 23 37 3 28 21 12 25 118 Melee 40 | . . 31 . 6 . . . . . . 3 . . . . . . . . . . . . . Ram . | . . . . . . . . . . . . . . . . . . . . . . . . . Kick . | . . . . . . . . . . . . . . . . . . . . . . . . . Crush 21 | . . . 2 3 1 . 3 . . 4 2 . . . . . . . . . . . 3 3 Escape Stasis 8 | . . . . . . . . . . . 8 . . . . . . . . . . . . . Rewire 237 | . . . . 1 . 1 . . . . 133 . . 49 . . . . . . 53 . . . Trap . | . . . . . . . . . . . . . . . . . . . . . . . . . Miscellaneous . | . . . . . . . . . . . . . . . . . . . . . . . . . Route ------- -11/Scrapyard -10/Materials (discovered 6 exits: [*Mat x3] / *Min x2 / *Sub) -10/Subcaves -8/Materials (discovered 3 exits: *Fac / *Sto x2) -8/Storage (discovered 2 exits: *Fac / [*Rec]) -7/Factory (discovered 2 exits: *Low x2) -7/Lower Caves -7/Lower Caves -7/Zion (discovered 2 exits: Dee / [*Pro]) -6/Proximity Caves -6/Factory (discovered 5 exits: *Fac / *Low x2 / *Ext x2) -6/Extension (discovered 3 exits: *Fac x2 / *Cet) -6/Cetus (discovered 2 exits: *Fac / [*Arc]) -5/Factory (discovered 3 exits: Fac / *Upp x2) -5/Upper Caves -5/Upper Caves (discovered 2 exits: Fac / *Zhi) -5/Zhirov -4/Proximity Caves -4/Factory (discovered 5 exits: Res x4 / *Upp) -4/Upper Caves -4/Upper Caves -4/Warlord -3/Proximity Caves -3/Research (discovered 4 exits: Res / *Arm / *Qua x2) -3/Armory History --------- Turn | Location | Event 1 | -11/Scrapyard | Discovered new exit (range 3) 84 | -11/Scrapyard | Entered Materials 172 | -10/Materials | Discovered new exit (range 10) 315 | -10/Materials | Discovered new exit (range 8) 317 | -10/Materials | Build established: Mutant 588 | -10/Materials | Discovered new exit (range 9) 791 | -10/Materials | Discovered new exit (range 11) 1152 | -10/Materials | Discovered new exit (range 13) 1157 | -10/Materials | Identified exit to Mines 1240 | -10/Materials | Discovered new exit (range 8) 1618 | -10/Materials | Entered Subcaves 1619 | -10/Subcaves | Approached by a straggling Scientist 1767 | -10/Subcaves | Visited 4L-MR0's lab 1854 | -10/Subcaves | Found Tower Shield 2136 | -10/Subcaves | Core integrity fell below 50% 2193 | -10/Subcaves | Shifting Twisted Machinery released Sub. Power Source 2290 | -10/Subcaves | Shifting Twisted Machinery released Flamer 2440 | -10/Subcaves | Disturbed a concealed Subdweller 2715 | -10/Subcaves | Learned Materials non-interactive machine intel 2899 | -10/Subcaves | Disturbed a concealed Subdweller 3254 | -10/Subcaves | Discovered new exit (range 7) 3279 | -10/Subcaves | Entered Materials 3279 | -8/Materials | Evolved 4 slots: Propulsion x1, Utility x2, Weapon x1 3280 | -8/Materials | Loaded intel: 31 non-interactive machine locations 3466 | -8/Materials | Discovered new exit (range 16) 3593 | -8/Materials | Garrison activated, responded to threat 3880 | -8/Materials | Build established: Tank 4096 | -8/Materials | Lost 3 parts (1n1u1w) 4170 | -8/Materials | Identified exit to Storage 4253 | -8/Materials | Attached Tower Shield, gained temporary slots: Power, Propulsion x2, Utility x2, Weapon x2 4280 | -8/Materials | Lost 5 parts (1p1n1u2w) 4316 | -8/Materials | Destroyed 7 combat bots 4593 | -8/Materials | Build established: Scavenger-Gunner 4815 | -8/Materials | Entered Storage 4896 | -8/Storage | Core integrity fell below 50% 5316 | -8/Storage | Build established: Scavenger-Tank 5629 | -8/Storage | Build established: Tank 5744 | -8/Storage | Learned location of Armory (-3) 5942 | -8/Storage | Assisted by bots powering up and referring to "LRC-V3" 6005 | -8/Storage | Repaired Lgt. Armor Plating 6044 | -8/Storage | Repaired Arm. Treads 6150 | -8/Storage | Met 01-MTF 6191 | -8/Storage | Discovered new exit (range 6) 6236 | -8/Storage | Build established: Commander-Tank 6854 | -8/Storage | Repaired Arm. Treads 6866 | -8/Storage | Discovered new exit (range 8) 7237 | -8/Storage | Entered Factory 7237 | -7/Factory | Accompanied by 10 allies (01-MTF) 7237 | -7/Factory | Evolved 2 slots: Propulsion x1, Utility x1 7240 | -7/Factory | 01-MTF left 7570 | -7/Factory | Build established: Commander-Gunner 7735 | -7/Factory | Identified exit to Lower Caves 8145 | -7/Factory | Lost 4 allies 8359 | -7/Factory | Garrison activated, responded to threat 8399 | -7/Factory | Build established: Hacker-Gunner 9399 | -7/Factory | Build established: Gunner 9477 | -7/Factory | System corruption reached 10% 9512 | -7/Factory | Lost 3 parts (2n1u) 9786 | -7/Factory | Build established: Tank 9817 | -7/Factory | Entered Lower Caves 9894 | -7/Lower Caves | Identified exit to Lower Caves 9916 | -7/Lower Caves | Encountered a Warlord checkpoint 10380 | -7/Lower Caves | Learned location of Extension (-6) 10517 | -7/Lower Caves | Build established: Mutant 10862 | -7/Lower Caves | Learned location of 1 exit from Proximity Caves 10898 | -7/Lower Caves | Build established: Tank 11168 | -7/Lower Caves | Entered another Lower Caves area 11367 | -7/Lower Caves | Spotted B-75 Beast 11756 | -7/Lower Caves | Learned Factory terminal intel 11761 | -7/Lower Caves | Discovered new exit (range 16) 11807 | -7/Lower Caves | Build established: Gunner 11979 | -7/Lower Caves | Entered Zion 12107 | -7/Zion | Discovered new exit (range 10) 12202 | -7/Zion | System corruption cleaned by Quarantine Array 12267 | -7/Zion | Found CR-A16's Pointy Stick 12288 | -7/Zion | Build established: Mutant 12298 | -7/Zion | Learned location of Quarantine (-3) 12303 | -7/Zion | Identified exit to Deep Caves 12845 | -7/Zion | Met Imprinter 13022 | -7/Zion | Learned Factory scanalyzer intel 13071 | -7/Zion | Given A8's code to call for help 13133 | -7/Zion | Learned location of Warlord (-4) 13266 | -7/Zion | Acquired unknown access codes intercepted by a Zionite 13496 | -7/Zion | Found Prototype Processor 13496 | -7/Zion | Identified Exp. Melee Analysis Suite 13499 | -7/Zion | Found Prototype Hackware 13499 | -7/Zion | Identified Exp. System Shield 13502 | -7/Zion | Found Prototype Processor 13502 | -7/Zion | Identified Exp. Terrain Scan Processor 13516 | -7/Zion | Found Prototype Processor 13516 | -7/Zion | Identified Exp. Signal Interpreter 13527 | -7/Zion | Found Prototype Processor 13527 | -7/Zion | Identified Exp. Targeting Computer 14044 | -7/Zion | Entered Proximity Caves 14045 | -6/Proximity Caves | Identified exit to Factory 14111 | -6/Proximity Caves | Spotter reported a threat 14202 | -6/Proximity Caves | Learned location of 1 exit from Factory 14284 | -6/Proximity Caves | Spotter reported a threat 14487 | -6/Proximity Caves | Build established: Skirmisher 14509 | -6/Proximity Caves | Entered Factory 14509 | -6/Factory | Evolved 2 slots: Utility x1, Weapon x1 14510 | -6/Factory | Discovered new exit (range 15) 14510 | -6/Factory | Identified exit to Factory 14511 | -6/Factory | Loaded intel: 28 terminal locations 14512 | -6/Factory | Loaded intel: 4 scanalyzer locations 14534 | -6/Factory | Identified exit to Lower Caves 14534 | -6/Factory | Identified exit to Extension 15361 | -6/Factory | Repaired Arm. Treads 15411 | -6/Factory | Repaired Hvy. Plasma Cannon 15453 | -6/Factory | Repaired Arm. Treads 15519 | -6/Factory | Repaired Med. Treads? 15820 | -6/Factory | Lost 5 parts (1p2n1u1w) 15924 | -6/Factory | Fabricated Imp. Medium Armor Plating? 16080 | -6/Factory | Build established: Tank 16220 | -6/Factory | Entered Extension 16797 | -6/Extension | Build established: Gunner 17495 | -6/Extension | Disrupted transfer network 17569 | -6/Extension | Lost 3 parts (2u1w) 17633 | -6/Extension | Build established: Commander-Gunner 17761 | -6/Extension | Energy Cycler disabled 17762 | -6/Extension | Rescued a captive Derelict 17762 | -6/Extension | Rescued a captive Derelict 17762 | -6/Extension | Rescued a captive Derelict 17763 | -6/Extension | Rescued a captive Derelict 17763 | -6/Extension | Rescued a captive Derelict 17768 | -6/Extension | Rescued a captive Derelict 18017 | -6/Extension | Discovered exit to Factory (range 10) 18019 | -6/Extension | Discovered new exit (range 6) 18056 | -6/Extension | Disrupted transfer network 18093 | -6/Extension | Lost 4 allies 18269 | -6/Extension | Discovered exit to Factory (range 11) 18381 | -6/Extension | Rescued A7 18701 | -6/Extension | Entered Cetus 18701 | -6/Cetus | Accompanied by 7 allies (A7) 18706 | -6/Cetus | Acquired a Cetus Manufacturing Module code from A7 18731 | -6/Cetus | Spotted Cetus Guard 18732 | -6/Cetus | Spotted Cetus Guard 18737 | -6/Cetus | Spotted Cetus Guard 18739 | -6/Cetus | Spotted Cetus Guard 18740 | -6/Cetus | Allies destroyed Cetus Guard 18742 | -6/Cetus | Destroyed Cetus Guard 18750 | -6/Cetus | Allies destroyed Cetus Guard 18762 | -6/Cetus | Allies destroyed Cetus Guard 18789 | -6/Cetus | Lost 6 allies 18916 | -6/Cetus | Started Cetus Manufacturing Module 18941 | -6/Cetus | Manufactured an Enhanced Grunt 18966 | -6/Cetus | Manufactured an Enhanced Grunt 18991 | -6/Cetus | Manufactured an Enhanced Grunt 19016 | -6/Cetus | Manufactured an Enhanced Grunt 19041 | -6/Cetus | Manufactured an Enhanced Grunt 19137 | -6/Cetus | Discovered new exit (range 15) 19198 | -6/Cetus | Spotted Cetus Guard 19198 | -6/Cetus | Spotted Cetus Guard 19201 | -6/Cetus | Spotted Cetus Guard 19202 | -6/Cetus | Spotted Cetus Guard 19204 | -6/Cetus | Allies destroyed Cetus Guard 19207 | -6/Cetus | Destroyed Cetus Guard 19209 | -6/Cetus | Allies destroyed Cetus Guard 19214 | -6/Cetus | Destroyed Cetus Guard 19240 | -6/Cetus | Found Prototype Device 19240 | -6/Cetus | Identified Exp. Thermal Shield 19259 | -6/Cetus | Discovered exit to Factory (range 15) 19271 | -6/Cetus | Met Revision 17 19348 | -6/Cetus | Murdered A7 19352 | -6/Cetus | Extracted ID and sensor layout for unrecognized location from A7's data core 19375 | -6/Cetus | Entered Factory 19375 | -5/Factory | Accompanied by 3 allies 19375 | -5/Factory | Evolved 2 slots: Power x1, Utility x1 19666 | -5/Factory | Discovered new exit (range 18) 19694 | -5/Factory | Build established: Scavenger-Skirmisher 19737 | -5/Factory | Identified exit to Upper Caves 19931 | -5/Factory | Discovered new exit (range 20) 20137 | -5/Factory | Repaired Kinecellerator? 20471 | -5/Factory | Entered Upper Caves 20527 | -5/Upper Caves | Attracted the attention of an 0b10 outpost 20794 | -5/Upper Caves | Attracted the attention of an 0b10 checkpoint 20922 | -5/Upper Caves | Discovered new exit (range 20) 21096 | -5/Upper Caves | Entered another Upper Caves area 21096 | -5/Upper Caves | Accompanied by 1 ally 21138 | -5/Upper Caves | Discovered new exit (range 17) 21567 | -5/Upper Caves | Build established: Scavenger-Tank 21677 | -5/Upper Caves | Discovered new exit (range 16) 21746 | -5/Upper Caves | Entered Zhirov 21749 | -5/Zhirov | Discovered new exit (range 3) 21789 | -5/Zhirov | Met Zhirov 21819 | -5/Zhirov | Learned location of Testing (-2) 21819 | -5/Zhirov | Learned location of Command (-1) 21855 | -5/Zhirov | Zhirov requested help retrieving the SGEMP Prototype 21907 | -5/Zhirov | Found Alien Artifact 21928 | -5/Zhirov | Found Alien Artifact 21928 | -5/Zhirov | Identified Integrated Dissipator 21928 | -5/Zhirov | Installed Integrated Dissipator, increased core heat dissipation (+20) 22041 | -5/Zhirov | Build established: Mutant 22189 | -5/Zhirov | Entered Proximity Caves 22189 | -4/Proximity Caves | Spotted B-86 Titan 22261 | -4/Proximity Caves | Attracted the attention of an 0b10 checkpoint 22269 | -4/Proximity Caves | Identified Transdimensional Reconstructor 22269 | -4/Proximity Caves | Warped through subspace 22287 | -4/Proximity Caves | Learned Research stockpile data 22455 | -4/Proximity Caves | Build established: Scavenger-Tank 22904 | -4/Proximity Caves | Learned location of 1 exit from Research 22939 | -4/Proximity Caves | Ambushed by research squad 22985 | -4/Proximity Caves | Lost 5 parts (1p2u2w) 23108 | -4/Proximity Caves | Discovered new exit (range 14) 23159 | -4/Proximity Caves | Entered Factory 23159 | -4/Factory | Evolved 2 slots: Propulsion x1, Utility x1 23277 | -4/Factory | Build established: Scavenger-Skirmisher 23712 | -4/Factory | Found Exp. Signal Interpreter 23733 | -4/Factory | Discovered new exit (range 20) 23779 | -4/Factory | Identified exit to Upper Caves 23802 | -4/Factory | Identified exit to Research 24316 | -4/Factory | Found Prototype Hackware 24349 | -4/Factory | Identified Exp. Hacking Suite 24804 | -4/Factory | Entered Upper Caves 25076 | -4/Upper Caves | Build established: Scavenger-Gunner 25346 | -4/Upper Caves | Discovered new exit (range 7) 25356 | -4/Upper Caves | Identified exit to Upper Caves 25391 | -4/Upper Caves | Entered another Upper Caves area 25792 | -4/Upper Caves | Attracted the attention of an 0b10 checkpoint 25794 | -4/Upper Caves | Discovered new exit (range 4) 25799 | -4/Upper Caves | Identified exit to Warlord 25801 | -4/Upper Caves | Entered Warlord 25867 | -4/Warlord | System corruption cleaned by Quarantine Array 26112 | -4/Warlord | Learned 4 Research zone layouts 26112 | -4/Warlord | Learned 4 Testing zone layouts 26112 | -4/Warlord | Learned 4 Testing zone layouts 26112 | -4/Warlord | Learned Testing security intel 26112 | -4/Warlord | Learned Factory garrison access intel 26198 | -4/Warlord | Visited the Vortex Lab 26211 | -4/Warlord | Warlord's base attacked by MAIN.C 26213 | -4/Warlord | Found Prototype Energy Gun 26216 | -4/Warlord | Found Prototype Energy Gun 26222 | -4/Warlord | Found Prototype Energy Gun 26530 | -4/Warlord | Met Warlord 26561 | -4/Warlord | Warlord forces counterattacked 26641 | -4/Warlord | Spotted B-90 Cyclops 26652 | -4/Warlord | Destroyed B-90 Cyclops 26665 | -4/Warlord | Spotted Striker 26674 | -4/Warlord | Allies destroyed Striker 26686 | -4/Warlord | Lost 6 allies 26711 | -4/Warlord | Spotted Striker 26757 | -4/Warlord | Discovered new exit (range 12) 26765 | -4/Warlord | Lost 7 allies 26772 | -4/Warlord | Identified exit to Proximity Caves 26802 | -4/Warlord | Entered Proximity Caves 26802 | -3/Proximity Caves | Accompanied by 1 ally 26938 | -3/Proximity Caves | Build established: Scavenger-Tank 27014 | -3/Proximity Caves | Spotter reported a threat 27068 | -3/Proximity Caves | Spotter reported a threat 27304 | -3/Proximity Caves | Discovered exit to Research (range 10) 27368 | -3/Proximity Caves | Entered Research 27368 | -3/Research | Evolved 2 slots: Propulsion x1, Utility x1 27369 | -3/Research | Identified exit to Armory 27370 | -3/Research | Identified exit to Research 27370 | -3/Research | Identified exit to Quarantine 27427 | -3/Research | Identified Vortex Rail (x2) 27568 | -3/Research | Revision forces began assault on 0b10 27597 | -3/Research | Met up with Revision 17++ 27774 | -3/Research | Spotted B-86 Titan 27833 | -3/Research | Identified Vortex Rifle 27911 | -3/Research | Discovered exit to Quarantine (range 14) 28068 | -3/Research | Research terminal network offline 28134 | -3/Research | Spotted Striker 28182 | -3/Research | Lost 7 allies 28416 | -3/Research | Entered Armory 28456 | -3/Armory | Build established: Scavenger-Gunner 29174 | -3/Armory | Destroyed 7 combat bots 29181 | -3/Armory | Lost 3 parts (1p1n1u) 29350 | -3/Armory | Lost 5 parts (2p1n1u1w) 29513 | -3/Armory | Found Unknown Launcher 29513 | -3/Armory | Identified Fusion Bomb Launcher 29604 | -3/Armory | Destroyed 7 combat bots 29662 | -3/Armory | Spotted B-86 Titan 29698 | -3/Armory | Destroyed B-86 Titan 29705 | -3/Armory | Lost 3 parts (2n1u) 29916 | -3/Armory | First assault squad dispatched 29972 | -3/Armory | System corruption reached 10% 29983 | -3/Armory | Build established: Gunner 30003 | -3/Armory | System corruption reached 30% 30013 | -3/Armory | Released all parts (6) 30032 | -3/Armory | Destroyed 11 combat bots 30039 | -3/Armory | Core integrity fell below 50% 30043 | -3/Armory | Lost 17 parts (2p4n6u5w) 30068 | -3/Armory | Core integrity fell below 20% 30132 | -3/Armory | Destroyed by X-77 Beamer with Gatling Laser Last Messages --------------- 30062_ System corrupted: Matter fused (-7). 30066_ S-43 Plague destroyed. 30067_ Slug penetrates Wall. 30075_ Impulse Thruster Array destroyed. 30077_ Transfer Shaft disabled. 30079_ MBBP38HM %J2Y0TV96G/ 30084_ Connecting with Door Terminal... >>Open(Door) Sealed Heavy Doors opened. 30094_ System corrupted: Component data lost. 30094_ Acquired 2 matter. 30100_ Acquired 1 matter. 30117_ O-32 Director: "IFF HANDSHAKE FAILED. SECURING TERMINAL." 30121_ ALERT: Potential suspicious activity detected, Programmers report to Armory Zone 4L. 30121_ ALERT: Hostiles spotted, dispatching reinforcements to Terminal A005. 30128_ System corrupted: Energy discharge (-39). Map ----- +----------------------------------------------------+ | ????????????????????????????????????# #????###### | | ?????????????????????????????????"??# #?????????? | | ?????????????????????????????????""?# #???????### | | ??????????????????????????????????" # ########! # | | ??????????????????????????????????? + / | | ????????????????????????????????????# ! / | | ????????????????????????????????????# # # | | ????????????????????????????????????# #??? | | ???????????????????????????????###### !! #??? | | ???????????????????????????????+ !! #??? | | ???????????????????????????????# !! #??? | | ???????????????????????????????# ####+##### #??? | | ??????????????????????????????????????????# ##?? | | ??????????????????????????????????????????# #?? | | ?????????????????????????????????# "???# +?? | | ?????????????????????????????????# % """?# #?? | | ?????????????????????????????????# + #?? | | ????????????????????????###????????? """ " ### | | ????????????????????????x #????????? """ # | | ???????????????????????? #?????????? """ # | | ???????????????????????? ?????????? ?# | | ???????????????????????? #??????????####?# | | #######?????????????????# #???????????????# | | #?????????????????# #???????????????# | | #?????????????????# #???????????????# """ | | #?????????????????#@#???????????????# """ | | ######???########## #???????????????# """ | | # ##### p###########+##### | | + | | + """ | | " # ### ##########+#### """ """ | | "" ######?# #??????? ?# """ """ | | "" #??????# #????? !!!!!! # """ "%" | | "" #??????# #???# !!!!!! # " | | "" #??????# #???# # " | | "" #??????# #???###########+#############" | | "" #??????####+###???????????????????????????## | | ?" #????????? ?????????????????????????????## | | ?? ?????????? ?????????????????????????????? | | ?? ?????????? ?????????????????????????????? | | ??####??????????""" "????????????????????????????? | | ????????????????"""T"????????????????????????????? | | ?????????????????????????????????????????????????? | | ?????????????????????????????????????????????????? | | ?????????????????????????????????????????????????? | | ?????????????????????????????????????????????????? | | ?????????????????????????????????????????????????? | | ?????????????????????????????????????????????????? | | ?????????????????????????????????????????????????? | | ?????????????????????????????????????????????????? | +----------------------------------------------------+ Best States ------------- Heat Dissipation 92 Energy Generation 47 Energy Capacity 600 Matter Stores 300 Matter Capacity 800 Sight Range 20 Robot Scan Range 16 Terrain Scan Range 20 Terrain Scan Density 1010 Power Amplification 30 Base Temperature (-) 150 Armor Coverage 2100 Core Shielding 40 Weapon Cycling 20 Evasion (%) 62 Targeting Accuracy 12 Target Analysis 8 Core Analysis 6 Recoil Reduction 12 Matter Filtering 30 Kinecelleration 30 Salvage Targeting 2 Offensive Hacking 20 Defensive Hacking 16 Item Schematics ----------------- Hacking Suite | -8/Materials | Scanalyzed Signal Interpreter | -8/Materials | Scanalyzed Adv. Targeting Computer | -7/Factory | Hacked Core Analyzer | -7/Factory | Hacked Proton Cannon | -7/Zion | Archive Imp. Field Recycling Unit | -7/Zion | Archive Matter Compressor | -7/Zion | Archive Imp. Medium Armor Plating | -7/Zion | Archive Arm. Huge Wheel | -7/Zion | Archive Force Field | -7/Zion | Archive Lightning Gun | -7/Zion | Archive Arm. Leg | -7/Zion | Archive EM Disruption Field | -7/Zion | Archive Adv. Hacking Suite | -7/Zion | Archive Adv. Drone Bay | -7/Zion | Archive Flexi-carbon Leg | -7/Zion | Archive Xenon Bombardment Thruster | -7/Zion | Archive Energy Filter | -7/Zion | Archive Drone Bay | -7/Zion | Archive Flamer | -7/Zion | Free Beamcaster | -7/Zion | Free Barrage Gun | -7/Zion | Free Assault Drone Bay | -5/Zhirov | Free Exp. Heat Sink | -5/Zhirov | Free Exp. Optical Array | -5/Zhirov | Free Imp. Arc Thrower | -5/Zhirov | Free Robot Schematics ------------------ R-06 Scavenger | -7/Zion | Archive W-25 Informer | -7/Zion | Archive Fabricated ------------ Imp. Medium Armor Plating | x2 | -6/Factory Repaired ---------- Lgt. Armor Plating | 13% | -8/Storage Arm. Treads | 37% | -8/Storage Arm. Treads | 64% | -8/Storage Hvy. Plasma Cannon | 16% | -6/Factory Arm. Treads | 4% | -6/Factory Med. Treads | 21% | -6/Factory Kinecellerator | 18% | -5/Factory Alien Tech Used ----------------- Integrated Dissipator Transdimensional Reconstructor Achievements -------------- Revolutionary Research Challenges ------------ None Game ------ Seed SurgeProcessingExpander Manual? 0 Play Time 05:58:17 Cumulative 29.5 hours Start 2025.08.05 @ 03:50:19 End 2025.08.06 @ 01:52:30 Sessions 2 Manual Loads 0 Difficulty Rogue Special Mode None Game No. 11 Rogue 11 Adventurer 0 Explorer 0 Win Type - Total 1 Types 0/0/1/0/0/0/0/0/0/0 Lore% 39 Gallery% 31 Achievement% 72 Wizard Run 0 Options --------- Layout 2 ASCII 0 Keyboard 1 Movement Vi Keybinds 0 Fullscreen 1 Font 28/SwanstonBold Map View 50x52 Zoom Use 0% Tactical HUD 1 Map Filters NONE Filters NONE Steam 1 RUN: dc9a9059-c879-450a-8569-41467f392c72